bitfinex/quotes_BTCUSD_20240712
["timestamp","ask_amount","ask_price","bid_price","bid_amount"]
[1720768176017,0.174231,57395.0,57394.0,0.06]
[1720768176223,0.174231,57395.0,57394.0,0.00106353]
[1720768176425,0.1,57395.0,57394.0,0.00106353]
[1720768176635,0.274231,57395.0,57394.0,0.00106353]
[1720768176836,0.622693,57395.0,57394.0,0.00106353]
[1720768178056,0.274231,57395.0,57394.0,0.12106353]
[1720768178259,0.274231,57395.0,57394.0,0.121]
[1720768179394,0.274231,57395.0,57394.0,0.122]
[1720768182808,0.00083,57396.0,57394.0,0.122]
[1720768182977,0.00083,57396.0,57395.0,0.78535653]
[1720768185439,0.00083,57396.0,57395.0,0.79635653]
[1720768185963,0.00083,57396.0,57395.0,0.79735653]
[1720768186370,0.00083,57396.0,57395.0,0.81035653]
[1720768186781,0.00083,57396.0,57395.0,0.79835653]
[1720768187199,0.00083,57396.0,57395.0,0.81135653]
[1720768187759,0.00083,57396.0,57395.0,0.810293]
[1720768187962,0.00083,57396.0,57395.0,0.81096376]
[1720768188169,0.00083,57396.0,57395.0,0.810293]
[1720768188366,0.00083,57396.0,57395.0,0.81089052]
[1720768189459,0.00083,57396.0,57395.0,0.810293]
[1720768189665,0.00083,57396.0,57395.0,0.81117305]
[1720768190097,0.00083,57396.0,57395.0,0.810293]
[1720768202416,0.00083,57396.0,57395.0,0.461831]
[1720768203377,0.00083,57396.0,57395.0,0.462744]
[1720768207606,0.00083,57396.0,57395.0,0.288513]
[1720768210764,0.00083,57396.0,57395.0,1.65291436]
[1720768211187,0.00083,57396.0,57395.0,1.87591436]
[1720768211812,0.00083,57396.0,57395.0,1.67591436]
[1720768212301,0.00083,57396.0,57395.0,1.66291436]
[1720768213684,0.00083,57396.0,57395.0,1.64991436]
[1720768213969,0.00083,57396.0,57395.0,1.66191436]
[1720768214204,0.00083,57396.0,57395.0,1.66391436]
[1720768214442,0.00083,57396.0,57395.0,1.64991436]
[1720768214686,0.00083,57396.0,57395.0,1.228968]
[1720768215130,0.00083,57396.0,57395.0,1.161668]
[1720768215133,0.00083,57396.0,57395.0,0.170513]
[1720768215337,0.175058,57396.0,57395.0,0.028913]
[1720768215548,0.523514,57396.0,57395.0,0.028913]
[1720768215983,0.175058,57396.0,57395.0,0.148913]
[1720768216882,0.175058,57396.0,57395.0,0.134913]
[1720768217058,0.175058,57396.0,57395.0,0.148913]
[1720768217293,0.175058,57396.0,57395.0,0.134913]
[1720768217838,0.175058,57396.0,57395.0,0.120913]
[1720768218042,0.175058,57396.0,57395.0,0.126913]
[1720768218247,0.523514,57396.0,57395.0,0.012913]
[1720768218706,0.61071,57396.0,57395.0,0.012913]
[1720768218976,1.287026,57396.0,57395.0,0.012913]
[1720768219898,1.287026,57396.0,57395.0,0.006913]
[1720768220130,1.287026,57396.0,57395.0,0.012913]
[1720768220358,1.287026,57396.0,57395.0,0.006913]
[1720768220617,1.287026,57396.0,57395.0,0.000913]
[1720768220895,1.287026,57396.0,57395.0,0.006913]
[1720768221158,1.62392288,57396.0,57395.0,0.001913]
[1720768221413,1.62392288,57396.0,57395.0,0.002913]
[1720768224119,1.320426,57396.0,57395.0,0.002913]
[1720768225773,1.320426,57396.0,57395.0,0.122913]
[1720768226254,1.320426,57396.0,57395.0,0.002913]
[1720768231807,1.33445122,57396.0,57395.0,0.002913]
[1720768233711,1.49097012,57396.0,57395.0,0.002913]
[1720768234474,1.33445122,57396.0,57395.0,0.002913]
[1720768235067,1.41225122,57396.0,57395.0,0.002913]
[1720768235269,1.56875805,57396.0,57395.0,0.002913]
[1720768235488,1.63515805,57396.0,57395.0,0.002913]
[1720768237328,1.47865122,57396.0,57395.0,0.002913]
[1720768237488,1.63513346,57396.0,57395.0,0.002913]
[1720768238408,1.41225122,57396.0,57395.0,0.002913]
[1720768238771,1.49365122,57396.0,57395.0,0.002913]
[1720768242376,1.41585122,57396.0,57395.0,0.002913]
[1720768252852,1.41502122,57396.0,57395.0,0.002913]
[1720768257441,1.57131305,57396.0,57395.0,0.002913]
[1720768258282,1.48991305,57396.0,57395.0,0.002913]
[1720768258459,1.57131305,57396.0,57395.0,0.002913]
[1720768259240,1.5714112,57396.0,57395.0,0.002913]
[1720768259474,1.41502122,57396.0,57395.0,0.002913]
[1720768262571,1.41502122,57396.0,57395.0,0.144113]
[1720768262770,1.41502122,57396.0,57395.0,0.264113]
[1720768262985,0.63670922,57396.0,57395.0,0.264113]
[1720768263209,0.11402522,57396.0,57395.0,0.264113]
[1720768263534,0.01402522,57396.0,57395.0,0.438344]
[1720768263737,0.01402522,57396.0,57395.0,1.135268]
[1720768263905,0.15662095,57402.0,57401.0,0.12]
[1720768264110,0.174208,57403.0,57402.0,0.35331435]
[1720768264557,0.522621,57403.0,57402.0,0.35331435]
[1720768264753,0.522621,57403.0,57402.0,0.2682]
[1720768264951,0.67918869,57403.0,57402.0,0.2682]
[1720768265360,0.522621,57403.0,57402.0,0.2682]
[1720768266997,0.522621,57403.0,57402.0,0.2782]
[1720768267767,0.522621,57403.0,57402.0,0.1582]
[1720768267768,0.523451,57403.0,57402.0,0.1582]
[1720768267987,1.220277,57403.0,57402.0,0.01]
[1720768268159,1.37684469,57403.0,57402.0,0.01]
[1720768268399,1.220277,57403.0,57402.0,0.01]
[1720768268800,1.37679392,57403.0,57402.0,0.01]
[1720768268934,1.37679392,57403.0,57398.0,0.0623]
[1720768268935,0.871095,57399.0,57398.0,0.0623]
[1720768269132,0.952495,57399.0,57398.0,0.0623]
[1720768269751,0.604057,57399.0,57398.0,0.0623]
[1720768269954,0.952495,57399.0,57398.0,0.0623]
[1720768270638,0.952495,57399.0,57398.0,0.0673]
[1720768271048,0.952495,57399.0,57398.0,0.0723]
[1720768271234,1.10901192,57399.0,57398.0,0.0723]
[1720768271382,0.952495,57399.0,57398.0,0.0723]
[1720768271580,1.300933,57399.0,57398.0,0.01]
[1720768272308,1.62185453,57399.0,57398.0,0.01]
[1720768272645,0.87114,57396.0,57395.0,0.000913]
[1720768272789,0.95254,57396.0,57395.0,0.000913]
[1720768273405,1.300996,57396.0,57395.0,0.000913]
[1720768274232,1.300996,57396.0,57395.0,0.005913]
[1720768275574,1.31495493,57396.0,57395.0,0.005913]
[1720768275995,0.88509893,57396.0,57395.0,0.005913]
[1720768276207,0.01395893,57396.0,57395.0,0.147313]
[1720768276400,0.53664293,57396.0,57395.0,0.267313]
[1720768276720,0.53664293,57396.0,57395.0,0.272313]
[1720768276922,0.53664293,57396.0,57395.0,0.27068966]
[1720768280344,0.53664293,57396.0,57395.0,0.15068966]
[1720768280936,0.88509893,57396.0,57395.0,0.15068966]
[1720768281129,1.23355493,57396.0,57395.0,0.00928966]
[1720768282908,1.01408872,57396.0,57395.0,0.00928966]
[1720768283146,1.02572096,57396.0,57395.0,0.00928966]
[1720768283903,1.19994896,57396.0,57395.0,0.00928966]
[1720768287177,1.19994896,57396.0,57395.0,0.00428966]
[1720768287564,0.87117,57394.0,57393.0,0.000913]
[1720768287888,0.95257,57394.0,57393.0,0.000913]
[1720768288079,0.96418329,57394.0,57393.0,0.000913]
[1720768290005,0.96418329,57394.0,57393.0,0.007913]
[1720768291128,0.96418329,57394.0,57393.0,0.148513]
[1720768291892,0.78994929,57394.0,57393.0,0.148513]
[1720768292117,0.96418329,57394.0,57393.0,0.148513]
[1720768292943,0.26724729,57394.0,57393.0,0.268513]
[1720768293161,0.53431529,57394.0,57393.0,0.268513]
[1720768293396,0.18584729,57394.0,57393.0,0.268513]
[1720768293840,0.18578234,57394.0,57393.0,0.268513]
[1720768294051,0.01154834,57394.0,57393.0,0.268513]
[1720768294257,0.01154834,57394.0,57393.0,0.44275]
[1720768294698,0.174222,57398.0,57397.0,0.2632]
[1720768296367,0.522666,57398.0,57397.0,0.2632]
[1720768296571,0.604066,57398.0,57397.0,0.0625]
[1720768296982,0.604066,57398.0,57397.0,0.0665]
[1720768297403,0.604066,57398.0,57397.0,0.0715]
[1720768298589,0.76049185,57398.0,57397.0,0.0715]
[1720768299039,0.76049185,57398.0,57397.0,0.0665]
[1720768299252,1.10894335,57398.0,57397.0,0.0665]
[1720768299452,1.10894335,57398.0,57397.0,0.0655]
[1720768299629,1.10977335,57398.0,57397.0,0.0685]
[1720768300600,0.95334,57398.0,57397.0,0.0685]
[1720768301219,1.10977335,57398.0,57397.0,0.0685]
[1720768301574,1.12137877,57398.0,57397.0,0.0685]
[1720768302602,1.46982277,57398.0,57397.0,0.006]
[1720768302795,1.39448942,57398.0,57397.0,0.006]
[1720768303204,1.39448942,57398.0,57397.0,0.003]
[1720768303545,0.87117,57394.0,57393.0,0.000913]
[1720768303773,0.95257,57394.0,57393.0,0.000913]
[1720768304319,0.96417542,57394.0,57393.0,0.000913]
[1720768304891,1.31264342,57394.0,57393.0,0.000913]
[1720768305115,1.46910169,57394.0,57393.0,0.000913]
[1720768305744,1.31264342,57394.0,57393.0,0.003913]
[1720768306156,1.46909698,57394.0,57393.0,0.006913]
[1720768307114,1.46909384,57394.0,57393.0,0.006913]
[1720768307323,1.31264342,57394.0,57393.0,0.006913]
[1720768308426,0.8712,57392.0,57391.0,0.009097]
[1720768308638,1.16305157,57392.0,57391.0,1e-08]
[1720768308839,0.522784,57385.0,57378.0,0.1406]
[1720768308967,1.052707,57385.0,57378.0,0.1406]
[1720768309165,1.052707,57385.0,57380.0,0.04963777]
[1720768309166,1.06428547,57385.0,57380.0,0.04963777]
[1720768309372,1.41280847,57385.0,57378.0,0.1406]
[1720768310518,1.41280847,57385.0,57384.0,0.010097]
[1720768310675,1.33140847,57385.0,57384.0,0.011097]
[1720768311664,1.85016887,57385.0,57384.0,0.011097]
[1720768311868,1.85016887,57385.0,57374.0,0.0633]
[1720768311869,1.295435,57380.0,57374.0,0.0633]
[1720768312163,1.665235,57380.0,57374.0,0.0633]
[1720768312362,1.67681347,57380.0,57374.0,0.0633]
[1720768312880,1.61051347,57380.0,57374.0,0.0633]
[1720768313076,1.61351347,57380.0,57374.0,0.0633]
[1720768313502,1.76962242,57380.0,57374.0,0.0633]
[1720768313703,1.77062242,57380.0,57374.0,0.0633]
[1720768313942,1.61451347,57380.0,57374.0,0.0633]
[1720768314150,1.61551347,57380.0,57374.0,0.0633]
[1720768314544,1.77157615,57380.0,57374.0,0.0633]
[1720768315358,1.76657615,57380.0,57374.0,0.0633]
[1720768315561,1.61051347,57380.0,57374.0,0.0633]
[1720768315760,1.61451347,57380.0,57374.0,0.0633]
[1720768316137,1.61951347,57380.0,57374.0,0.0633]
[1720768316618,1.61451347,57380.0,57374.0,0.0633]
[1720768317041,1.61551347,57380.0,57374.0,0.0633]
[1720768317568,1.61951347,57380.0,57371.0,0.08511435]
[1720768317949,2.06089076,57380.0,57371.0,0.08511435]
[1720768318362,1.97146647,57380.0,57371.0,0.08511435]
[1720768320174,1.97146647,57380.0,57371.0,0.20511435]
[1720768320408,1.89256647,57380.0,57371.0,0.20511435]
[1720768320937,1.89256647,57380.0,57371.0,0.08511435]
[1720768322043,1.89256647,57380.0,57371.0,0.20511435]
[1720768322240,1.89256647,57380.0,57377.0,0.0609]
[1720768323428,0.99196047,57380.0,57377.0,0.0609]
[1720768324081,0.99196047,57380.0,57378.0,0.12]
[1720768324293,0.02057847,57380.0,57379.0,0.273197]
[1720768324697,0.02044165,57380.0,57379.0,0.273197]
[1720768325056,0.16971265,57382.0,57381.0,0.2641]
[1720768325691,0.61825365,57382.0,57381.0,0.1441]
[1720768326085,0.522829,57380.0,57379.0,0.014097]
[1720768326289,0.622829,57380.0,57379.0,0.009097]
[1720768326497,1.319935,57380.0,57379.0,0.009097]
[1720768326793,1.319935,57380.0,57379.0,0.013097]
[1720768326994,0.971382,57380.0,57379.0,0.013097]
[1720768327175,0.971382,57380.0,57379.0,0.009097]
[1720768327581,0.971382,57380.0,57379.0,0.015097]
[1720768327785,0.971382,57380.0,57379.0,0.012097]
[1720768328287,0.971382,57380.0,57379.0,0.015097]
[1720768329473,0.971382,57380.0,57379.0,0.012097]
[1720768329970,0.971382,57380.0,57379.0,0.016097]
[1720768331402,0.622829,57380.0,57379.0,0.136097]
[1720768331604,0.622829,57380.0,57379.0,0.276297]
[1720768331804,0.622829,57380.0,57379.0,0.156297]
[1720768332409,0.971382,57380.0,57379.0,0.156297]
[1720768332614,1.052782,57380.0,57379.0,0.156297]
[1720768332947,0.87149,57373.0,57372.0,0.0646]
[1720768333114,0.95289,57373.0,57372.0,0.0646]
[1720768333318,1.05289,57373.0,57372.0,0.0646]
[1720768333501,1.06245883,57373.0,57372.0,0.0646]
[1720768334642,1.06245883,57373.0,57372.0,0.0656]
[1720768335144,1.06245883,57373.0,57371.0,0.0753]
[1720768335145,0.871505,57372.0,57371.0,0.0753]
[1720768335378,0.971505,57372.0,57371.0,0.0753]
[1720768336033,0.98107383,57372.0,57371.0,0.0753]
[1720768337174,0.98107383,57372.0,57371.0,0.0783]
[1720768337377,0.98107383,57372.0,57371.0,0.0813]
[1720768337779,0.98107383,57372.0,57371.0,0.0783]
[1720768338102,0.98107383,57372.0,57371.0,0.0753]
[1720768338314,0.98107383,57372.0,57371.0,0.0773]
[1720768338503,0.98107383,57372.0,57371.0,0.0793]
[1720768339801,0.76140762,57372.0,57371.0,0.0793]
[1720768340030,0.93570862,57372.0,57371.0,0.0793]
[1720768343150,0.93570862,57372.0,57371.0,0.004]
[1720768343151,1.28431062,57372.0,57371.0,0.004]
[1720768344189,1.28431062,57372.0,57371.0,0.002]
[1720768344384,0.87155,57369.0,57368.0,0.000913]
[1720768344785,0.87949419,57369.0,57368.0,0.000913]
[1720768345143,1.08309419,57369.0,57368.0,0.000913]
[1720768346029,1.43171419,57369.0,57368.0,0.000913]
[1720768346743,1.43271419,57369.0,57368.0,0.006913]
[1720768346987,1.43371419,57369.0,57368.0,0.012913]
[1720768347721,1.25940419,57369.0,57368.0,0.012913]
[1720768347948,1.43371419,57369.0,57368.0,0.012913]
[1720768350443,1.43371419,57369.0,57368.0,0.280013]
[1720768350444,0.18425419,57369.0,57368.0,0.280013]
[1720768350983,0.00994419,57369.0,57368.0,0.280013]
[1720768351182,0.00994419,57369.0,57368.0,0.28107653]
[1720768351446,0.00994419,57369.0,57368.0,0.45887541]
[1720768351622,0.00994419,57369.0,57368.0,0.45781188]
[1720768351976,0.002,57369.0,57368.0,0.45781188]
[1720768352185,0.002,57369.0,57368.0,0.45887541]
[1720768352937,0.001,57369.0,57368.0,0.45287541]
[1720768353303,0.001,57369.0,57368.0,0.46087541]
[1720768353906,0.01168433,57372.0,57371.0,0.12]
[1720768354109,0.1,57375.0,57372.0,0.1387]
[1720768354499,0.1,57375.0,57374.0,0.2587]
[1720768355514,0.11174832,57375.0,57374.0,0.2587]
[1720768355821,0.1,57375.0,57374.0,0.2587]
[1720768356004,0.174274,57381.0,57379.0,0.0656]
[1720768356252,0.348529,57384.0,57381.0,0.12]
[1720768356448,0.52445388,57390.0,57374.0,0.00348545]
[1720768356449,0.67918483,57387.0,57386.0,0.12]
[1720768356561,0.522769,57387.0,57386.0,0.2672]
[1720768358208,0.528769,57387.0,57386.0,0.2682]
[1720768358648,0.628769,57387.0,57386.0,0.2682]
[1720768359250,0.106,57387.0,57386.0,0.2682]
[1720768359747,0.006,57387.0,57386.0,0.2682]
[1720768359982,0.013,57387.0,57386.0,0.2692]
[1720768360094,0.522759,57388.0,57387.0,0.06]
[1720768360296,0.522759,57388.0,57387.0,0.12]
[1720768360546,0.622759,57388.0,57387.0,0.12]
[1720768360958,0.77914548,57388.0,57387.0,0.12]
[1720768361377,0.77914548,57388.0,57387.0,0.123]
[1720768361787,0.77914548,57388.0,57387.0,0.126]
[1720768361993,0.622759,57388.0,57387.0,0.126]
[1720768362202,0.63071689,57388.0,57387.0,0.126]
[1720768362790,0.71211689,57388.0,57387.0,0.123]
[1720768362993,0.36360989,57388.0,57387.0,0.12]
[1720768363436,0.36360989,57388.0,57387.0,0.124]
[1720768363591,0.36360989,57388.0,57387.0,0.128]
[1720768363947,0.36360989,57388.0,57387.0,0.36191435]
[1720768363948,0.18935789,57388.0,57387.0,0.36191435]
[1720768364154,0.08935789,57388.0,57387.0,0.36191435]
[1720768364364,0.08935789,57388.0,57387.0,0.2768]
[1720768364782,0.09018789,57388.0,57387.0,0.2768]
[1720768368700,0.00878789,57388.0,57387.0,0.451055]
[1720768369133,0.00083,57388.0,57387.0,0.451055]
[1720768369339,0.00083,57388.0,57387.0,1.148075]
[1720768369875,0.00083,57388.0,57387.0,1.208075]
[1720768370297,0.00083,57388.0,57387.0,1.200075]
[1720768370715,0.00283,57388.0,57387.0,1.221075]
[1720768371793,0.00283,57388.0,57387.0,1.161075]
[1720768372291,0.00283,57388.0,57387.0,1.221075]
[1720768372909,0.00283,57388.0,57387.0,1.161075]
[1720768373725,0.00283,57388.0,57387.0,1.221075]
[1720768374574,0.00283,57388.0,57387.0,1.161075]
[1720768378195,0.00283,57388.0,57387.0,1.221075]
[1720768379135,0.00283,57388.0,57387.0,1.161075]
[1720768380326,0.00283,57388.0,57387.0,1.221075]
[1720768380528,0.00283,57388.0,57387.0,1.161075]
[1720768384289,0.00283,57388.0,57387.0,1.221075]
[1720768389536,0.00283,57388.0,57387.0,0.812565]
[1720768391197,0.00283,57388.0,57387.0,0.2898]
[1720768391768,0.01093813,57388.0,57387.0,0.2898]
[1720768391968,0.01293813,57388.0,57387.0,0.2898]
[1720768392327,0.01293813,57388.0,57387.0,0.141]
[1720768392526,0.05702764,57390.0,57388.0,0.12]
[1720768392734,0.05702764,57390.0,57387.0,0.021]
[1720768392735,0.87126,57388.0,57387.0,0.021]
[1720768392945,1.299564,57388.0,57387.0,0.021]
[1720768393279,1.399564,57388.0,57387.0,0.021]
[1720768393482,1.399564,57388.0,57387.0,0.011]
[1720768394081,0.522829,57380.0,57379.0,0.12]
[1720768394285,0.604229,57380.0,57379.0,0.12]
[1720768395427,0.0814,57380.0,57373.0,0.12]
[1720768395638,0.522903,57372.0,57371.0,0.12]
[1720768395807,0.174307,57370.0,57368.0,0.120913]
[1720768396047,0.0814,57369.0,57368.0,0.120913]
[1720768396624,0.0814,57369.0,57368.0,0.000913]
[1720768396848,0.0814,57369.0,57368.0,0.120913]
[1720768397552,0.255701,57372.0,57371.0,0.12]
[1720768397757,0.355701,57372.0,57371.0,0.12]
[1720768398070,0.355701,57372.0,57371.0,0.2619]
[1720768398071,0.1814,57372.0,57371.0,0.2619]
[1720768398277,0.1,57372.0,57371.0,0.34701435]
[1720768399195,0.255692,57375.0,57371.0,0.34701435]
[1720768399196,0.1,57374.0,57371.0,0.34701435]
[1720768399347,0.1,57374.0,57373.0,0.12]
[1720768401743,0.101,57374.0,57373.0,0.12]
[1720768401858,0.1,57374.0,57373.0,0.12]
[1720768402333,0.002,57374.0,57373.0,0.134]
[1720768402958,0.002,57374.0,57373.0,0.127]
[1720768402959,0.001,57374.0,57373.0,0.127]
[1720768403160,0.0814,57375.0,57374.0,0.12]
[1720768403399,0.0814,57375.0,57374.0,0.119]
[1720768404788,0.001,57375.0,57374.0,0.125]
[1720768405597,0.001,57375.0,57374.0,0.13]
[1720768407565,0.225285,57377.0,57374.0,0.13]
[1720768407895,0.051,57377.0,57376.0,0.119]
[1720768408097,0.0814,57378.0,57377.0,0.119]
[1720768408460,0.01160923,57380.0,57378.0,0.0767]
[1720768408747,0.255668,57383.0,57379.0,0.119]
[1720768408987,0.255668,57383.0,57382.0,0.119]
[1720768409361,0.32508438,57384.0,57382.0,0.119]
[1720768409570,0.51084874,57384.0,57383.0,0.00306353]
[1720768409764,0.59224874,57384.0,57383.0,0.00306353]
[1720768409966,0.17620347,57383.0,57382.0,0.119]
[1720768410167,0.27620347,57383.0,57382.0,0.119]
[1720768410550,0.274267,57383.0,57382.0,0.119]
[1720768411175,0.622802,57383.0,57382.0,0.119]
[1720768411417,0.627802,57383.0,57382.0,0.119]
[1720768412742,0.174307,57370.0,57369.0,0.119]
[1720768412937,0.604321,57370.0,57369.0,0.119]
[1720768414265,0.604321,57370.0,57369.0,0.131]
[1720768414768,0.605321,57370.0,57369.0,0.144]
[1720768415958,0.605321,57370.0,57369.0,0.025]
[1720768415959,1.37867541,57370.0,57369.0,0.025]
[1720768416157,1.445549,57370.0,57369.0,0.025]
[1720768416357,1.545549,57370.0,57369.0,0.01364601]
[1720768416941,1.545549,57370.0,57369.0,0.013]
[1720768417281,1.894163,57370.0,57369.0,0.015]
[1720768417484,1.893163,57370.0,57369.0,0.002]
[1720768417856,1.893163,57370.0,57369.0,0.004]
[1720768418112,1.893163,57370.0,57369.0,0.002]
[1720768418484,1.902163,57370.0,57369.0,0.003]
[1720768418693,2.024363,57370.0,57369.0,0.003]
[1720768419446,2.024363,57370.0,57369.0,0.001]
[1720768419630,2.03573503,57370.0,57369.0,0.001]
[1720768419827,2.04073503,57370.0,57369.0,0.002]
[1720768420258,2.03573503,57370.0,57369.0,0.001]
[1720768420464,1.22017,57369.0,57368.0,0.000913]
[1720768420666,1.32017,57369.0,57368.0,0.000913]
[1720768420869,1.74965353,57369.0,57368.0,0.000913]
[1720768421326,1.74659,57369.0,57368.0,0.000913]
[1720768421518,1.80749,57369.0,57368.0,0.000913]
[1720768421724,1.80749,57369.0,57357.0,0.009108]
[1720768421725,0.174331,57362.0,57357.0,0.009108]
[1720768421865,1.152655,57362.0,57357.0,0.009108]
[1720768422061,1.601317,57362.0,57357.0,0.009108]
[1720768422275,2.010879,57362.0,57357.0,0.009108]
[1720768423543,2.010879,57362.0,57361.0,0.002913]
[1720768429208,2.359541,57362.0,57361.0,0.002913]
[1720768429496,2.359541,57362.0,57357.0,0.009108]
[1720768429497,1.220404,57358.0,57357.0,0.009108]
[1720768429689,1.320404,57358.0,57357.0,0.009108]
[1720768429907,1.669091,57358.0,57357.0,0.009108]
[1720768430456,1.669091,57358.0,57357.0,0.153508]
[1720768430457,1.320404,57358.0,57357.0,0.153508]
[1720768433089,1.35317567,57358.0,57357.0,0.153508]
[1720768434663,1.00448867,57358.0,57357.0,0.153508]
[1720768435295,1.35317567,57358.0,57357.0,0.153508]
[1720768438615,1.00448867,57358.0,57357.0,0.153508]
[1720768439021,1.35317567,57358.0,57357.0,0.153508]
[1720768440209,1.35317567,57358.0,57357.0,0.009108]
[1720768440826,1.43467567,57358.0,57357.0,0.009108]
[1720768444572,1.00448867,57358.0,57357.0,0.270408]
[1720768444821,1.08598867,57358.0,57357.0,0.270408]
[1720768446016,1.08598867,57358.0,57357.0,0.271408]
[1720768446412,1.08598867,57358.0,57357.0,0.273408]
[1720768448112,0.1,57358.0,57357.0,0.273408]
[1720768448316,0.53463152,57362.0,57361.0,0.2667]
[1720768448511,0.71613152,57362.0,57361.0,0.2667]
[1720768449521,1.06479652,57362.0,57361.0,0.2667]
[1720768449702,1.06879652,57362.0,57361.0,0.2667]
[1720768450429,1.07129652,57362.0,57361.0,0.2667]
[1720768451165,1.06729652,57362.0,57361.0,0.2667]
[1720768451815,1.06329652,57362.0,57361.0,0.2667]
[1720768452390,0.71463152,57362.0,57361.0,0.1477]
[1720768452712,0.71463152,57362.0,57361.0,0.2667]
[1720768453819,0.36596652,57362.0,57361.0,0.2667]
[1720768454022,0.19163552,57362.0,57361.0,0.2667]
[1720768454358,0.09163552,57362.0,57361.0,0.2667]
[1720768454937,0.26596652,57362.0,57361.0,0.2667]
[1720768455135,0.36596652,57362.0,57361.0,0.2667]
[1720768456173,0.19163552,57362.0,57361.0,0.2667]
[1720768460047,0.19246552,57362.0,57361.0,0.2667]
[1720768462728,0.36679652,57362.0,57361.0,0.2667]
[1720768465700,0.11096552,57362.0,57361.0,0.2667]
[1720768465919,0.01096552,57362.0,57361.0,0.2667]
[1720768466131,0.11096552,57362.0,57361.0,0.2667]
[1720768467211,0.01096552,57362.0,57361.0,0.2667]
[1720768468095,0.01096552,57362.0,57361.0,0.35181435]
[1720768468356,0.01096552,57362.0,57361.0,0.93481635]
[1720768468562,0.00083,57362.0,57361.0,1.28348435]
[1720768470267,0.00183,57362.0,57361.0,1.29148435]
[1720768470648,0.00183,57362.0,57361.0,1.64615235]
[1720768470649,0.00283,57362.0,57361.0,1.64615235]
[1720768470855,0.0815,57377.0,57376.0,0.2628]
[1720768471023,0.522849,57378.0,57377.0,0.119]
[1720768471218,0.522849,57378.0,57376.0,0.2628]
[1720768471219,0.174285,57377.0,57376.0,0.2628]
[1720768472866,0.274285,57377.0,57376.0,0.2628]
[1720768473924,0.274285,57377.0,57376.0,0.2698]
[1720768474669,0.1,57377.0,57376.0,0.2698]
[1720768475507,0.0111265,57378.0,57377.0,0.119]
[1720768475685,0.35578,57379.0,57378.0,0.119]
[1720768476859,0.1815,57379.0,57378.0,0.119]
[1720768477060,0.1815,57379.0,57378.0,0.12]
[1720768477826,0.1815,57379.0,57378.0,0.121]
[1720768478033,0.19266052,57379.0,57378.0,0.121]
[1720768479405,0.09266052,57379.0,57378.0,0.121]
[1720768479609,0.19266052,57379.0,57378.0,0.121]
[1720768480424,0.11116052,57379.0,57378.0,0.2622]
[1720768480844,0.01116052,57379.0,57378.0,0.2622]
[1720768481251,0.1,57381.0,57380.0,0.119]
[1720768483112,0.102,57381.0,57380.0,0.119]
[1720768483936,0.103,57381.0,57380.0,0.119]
[1720768484770,0.102,57381.0,57380.0,0.119]
[1720768484994,0.102,57381.0,57379.0,0.119]
[1720768486038,0.1,57381.0,57379.0,0.119]
[1720768487147,0.1,57381.0,57378.0,0.2602]
[1720768487383,0.174274,57381.0,57378.0,0.2602]
[1720768487522,0.1,57380.0,57379.0,0.119]
[1720768487735,0.1815,57380.0,57379.0,0.119]
[1720768488104,0.355776,57380.0,57378.0,0.2602]
[1720768488323,0.530054,57380.0,57375.0,0.079]
[1720768488454,0.530054,57380.0,57370.0,0.119]
[1720768488455,0.348608,57371.0,57370.0,0.119]
[1720768488650,0.25581,57369.0,57368.0,0.184]
[1720768488877,0.60443,57369.0,57368.0,0.119]
[1720768489077,0.25581,57369.0,57368.0,0.119]
[1720768489906,0.25581,57369.0,57368.0,0.20411435]
[1720768490901,0.25681,57369.0,57368.0,0.21311435]
[1720768491112,0.25681,57369.0,57368.0,0.20411435]
[1720768491316,0.25581,57369.0,57368.0,0.20411435]
[1720768491669,0.25681,57369.0,57368.0,0.21211435]
[1720768491898,0.25681,57369.0,57368.0,0.127]
[1720768492092,0.60949353,57369.0,57368.0,0.134]
[1720768492676,0.60643,57369.0,57368.0,0.134913]
[1720768497601,0.60643,57369.0,57368.0,0.22002735]
[1720768502959,0.002,57369.0,57368.0,0.36602735]
[1720768503115,0.002,57369.0,57368.0,0.54034035]
[1720768504107,0.001,57369.0,57368.0,0.53334035]
[1720768504310,0.001,57369.0,57368.0,1.29059235]
[1720768504587,0.001,57369.0,57368.0,0.94096635]
[1720768504911,0.001,57369.0,57368.0,0.95496635]
[1720768506662,0.06703466,57377.0,57376.0,0.06]
[1720768506839,0.24131966,57377.0,57376.0,0.119]
[1720768507424,0.174285,57377.0,57376.0,0.119]
[1720768507907,0.174285,57377.0,57376.0,0.122]
[1720768508894,0.1,57377.0,57376.0,0.20711435]
[1720768509103,0.1,57377.0,57376.0,0.58330235]
[1720768509273,0.11139793,57377.0,57376.0,0.34901435]
[1720768509913,0.01139793,57377.0,57376.0,0.34901435]
[1720768510127,0.1,57377.0,57376.0,0.34901435]
[1720768510878,0.1,57377.0,57376.0,0.52330235]
[1720768511081,0.1,57377.0,57376.0,0.34901435]
[1720768511262,0.18233,57381.0,57380.0,0.119]
[1720768511468,0.19367944,57381.0,57380.0,0.1952]
[1720768511665,0.11217944,57381.0,57380.0,0.2614]
[1720768512649,0.11217944,57381.0,57380.0,0.435676]
[1720768512650,0.01217944,57381.0,57380.0,0.435676]
[1720768513075,0.01217944,57381.0,57380.0,0.2614]
[1720768513810,0.01417944,57381.0,57380.0,0.2614]
[1720768514121,0.01217944,57381.0,57380.0,0.2614]
[1720768514424,0.01217944,57381.0,57380.0,0.2664]
[1720768515289,0.01217944,57381.0,57380.0,0.2704]
[1720768517444,0.01217944,57381.0,57380.0,0.1514]
[1720768517654,0.01217944,57381.0,57380.0,0.2704]